Workbook

Sheet U87 I
B7: time [h] | C7: wound area | D7: mean | E7: SD | H7: time [h] | I7: wound area | J7: mean | K7: SD | N7: time [h] | O7: wound area | P7: mean | Q7: SD
A8: control | B8: 0 | C8: 4996235 | D8: =AVERAGE(C8:C10) -> 5100055.333 | E8: =STDEVA(C8:C10) -> 265025.8938 | G8: Perphenazine 1uM | H8: 0 | I8: 5581872 | J8: =AVERAGE(I8:I10) -> 5207691 | K8: =STDEVA(I8:I10) -> 370700.9394 | M8: Prochlorperazine 1uM | N8: 0 | O8: 5482092 | P8: =AVERAGE(O8:O10) -> 4804586 | Q8: =STDEVA(O8:O10) -> 729383.3989
C9: 4902657 | I9: 5200630 | O9: 4032544
C10: 5401274 | I10: 4840571 | O10: 4899122
B11: 3 | C11: 3681817 | D11: =AVERAGE(C11:C13) -> 3645973.333 | E11: =STDEVA(C11:C13) -> 251285.1673 | H11: 3 | I11: 2969880 | J11: =AVERAGE(I11:I13) -> 3006746.333 | K11: =STDEVA(I11:I13) -> 32442.1594 | N11: 3 | O11: 4299933 | P11: =AVERAGE(O11:O13) -> 4196708 | Q11: =STDEVA(O11:O13) -> 96742.86439
C12: 3877412 | I12: 3019422 | O12: 4108114
C13: 3378691 | I13: 3030937 | O13: 4182077
B14: 6 | C14: 2957224 | D14: =AVERAGE(C14:C16) -> 3291347.667 | E14: =STDEVA(C14:C16) -> 605985.6928 | H14: 6 | I14: 2537612 | J14: =AVERAGE(I14:I16) -> 2600301.333 | K14: =STDEVA(I14:I16) -> 127791.6859 | N14: 6 | O14: 4095892 | P14: =AVERAGE(O14:O16) -> 3557663 | Q14: =STDEVA(O14:O16) -> 487668.5849
C15: 2925972 | I15: 2515960 | O15: 3431911
C16: 3990847 | I16: 2747332 | O16: 3145186
B17: 9 | C17: 2748402 | D17: =AVERAGE(C17:C19) -> 2758545.667 | E17: =STDEVA(C17:C19) -> 80427.69015 | H17: 9 | I17: 2144800 | J17: =AVERAGE(I17:I19) -> 2375637 | K17: =STDEVA(I17:I19) -> 323865.889 | N17: 9 | O17: 3359385 | P17: =AVERAGE(O17:O19) -> 3354495.667 | Q17: =STDEVA(O17:O19) -> 146187.3355
C18: 2683671 | I18: 2745859 | O18: 3498177
C19: 2843564 | I19: 2236252 | O19: 3205925
B20: 12 | C20: 1540578 | D20: =AVERAGE(C20:C22) -> 2408862.333 | E20: =STDEVA(C20:C22) -> 834401.4204 | H20: 12 | I20: 2223405 | J20: =AVERAGE(I20:I22) -> 2127327 | K20: =STDEVA(I20:I22) -> 218675.5498 | N20: 12 | O20: 2477769 | P20: =AVERAGE(O20:O22) -> 2688073.333 | Q20: =STDEVA(O20:O22) -> 473222.3623
C21: 2481359 | I21: 2281515 | O21: 2356455
C22: 3204650 | I22: 1877061 | O22: 3229996
B23: 24 | C23: 1659357 | D23: =AVERAGE(C23:C25) -> 1303197.333 | E23: =STDEVA(C23:C25) -> 355602.8142 | H23: 24 | I23: 1250671 | J23: =AVERAGE(I23:I25) -> 1464544.667 | K23: =STDEVA(I23:I25) -> 280143.1773 | N23: 24 | O23: 2092621 | P23: =AVERAGE(O23:O25) -> 2007844.667 | Q23: =STDEVA(O23:O25) -> 74016.43554
C24: 1302081 | I24: 1361306 | O24: 1956067
C25: 948154 | I25: 1781657 | O25: 1974846
A28: % of wound healing | B28: 3 | C28: =(($D$8-D11)/$D$8)*100 -> 28.51 | G28: % of wound healing | H28: 3 | I28: =(($J$8-J11)/$J$8)*100 -> 42.26 | M28: % of wound healing | N28: 3 | O28: =(($P$8-P11)/$P$8)*100 -> 12.65
B29: 6 | C29: =(($D$8-D14)/$D$8)*100 -> 35.46 | H29: 6 | I29: =(($J$8-J14)/$J$8)*100 -> 50.07 | N29: 6 | O29: =(($P$8-P14)/$P$8)*100 -> 25.95
B30: 9 | C30: =(($D$8-D17)/$D$8)*100 -> 45.91 | H30: 9 | I30: =(($J$8-J17)/$J$8)*100 -> 54.38 | N30: 9 | O30: =(($P$8-P17)/$P$8)*100 -> 30.18
B31: 12 | C31: =(($D$8-D20)/$D$8)*100 -> 52.77 | H31: 12 | I31: =(($J$8-J20)/$J$8)*100 -> 59.15 | N31: 12 | O31: =(($P$8-P20)/$P$8)*100 -> 44.05
B32: 24 | C32: =(($D$8-D23)/$D$8)*100 -> 74.45 | H32: 24 | I32: =(($J$8-J23)/$J$8)*100 -> 71.88 | N32: 24 | O32: =(($P$8-P23)/$P$8)*100 -> 58.21

Sheet U87 II
B7: time [h] | C7: wound area | D7: mean | E7: SD | H7: time [h] | I7: wound area | J7: mean | K7: SD | N7: time [h] | O7: wound area | P7: mean | Q7: SD
A8: control | B8: 0 | C8: 5788204 | D8: =AVERAGE(C8:C10) -> 4889423 | E8: =STDEVA(C8:C10) -> 780836.0804 | G8: Perphenazine 1uM | H8: 0 | I8: 3994597 | J8: =AVERAGE(I8:I10) -> 4855697 | K8: =STDEVA(I8:I10) -> 809201.4511 | M8: Prochlorperazine 1uM | N8: 0 | O8: 5133576 | P8: =AVERAGE(O8:O10) -> 5190564.667 | Q8: =STDEVA(O8:O10) -> 598794.3705
C9: 4502077 | I9: 5600392 | O9: 5815816
C10: 4377988 | I10: 4972102 | O10: 4622302
B11: 3 | C11: 4357873 | D11: =AVERAGE(C11:C13) -> 4007689.667 | E11: =STDEVA(C11:C13) -> 458134.566 | H11: 3 | I11: 3758602 | J11: =AVERAGE(I11:I13) -> 3642795.667 | K11: =STDEVA(I11:I13) -> 173628.9107 | N11: 3 | O11: 4606934 | P11: =AVERAGE(O11:O13) -> 4574769 | Q11: =STDEVA(O11:O13) -> 81192.45272
C12: 3489209 | I12: 3443158 | O12: 4634951
C13: 4175987 | I13: 3726627 | O13: 4482422
B14: 6 | C14: 3081454 | D14: =AVERAGE(C14:C16) -> 3222718 | E14: =STDEVA(C14:C16) -> 515338.7301 | H14: 6 | I14: 2944193 | J14: =AVERAGE(I14:I16) -> 2741956.667 | K14: =STDEVA(I14:I16) -> 228470.1768 | N14: 6 | O14: 4040192 | P14: =AVERAGE(O14:O16) -> 3776246 | Q14: =STDEVA(O14:O16) -> 229726.7664
C15: 3793957 | I15: 2787549 | O15: 3621387
C16: 2792743 | I16: 2494128 | O16: 3667159
B17: 9 | C17: 3015383 | D17: =AVERAGE(C17:C19) -> 2851792.333 | E17: =STDEVA(C17:C19) -> 572972.4011 | H17: 9 | I17: 2848742 | J17: =AVERAGE(I17:I19) -> 2773975.667 | K17: =STDEVA(I17:I19) -> 147623.2988 | N17: 9 | O17: 3369572 | P17: =AVERAGE(O17:O19) -> 3163817.667 | Q17: =STDEVA(O17:O19) -> 192550.8456
C18: 2214816 | I18: 2869258 | O18: 2987970
C19: 3325178 | I19: 2603927 | O19: 3133911
B20: 12 | C20: 2523069 | D20: =AVERAGE(C20:C22) -> 2384850.333 | E20: =STDEVA(C20:C22) -> 542731.7206 | H20: 12 | I20: 2394213 | J20: =AVERAGE(I20:I22) -> 2157433 | K20: =STDEVA(I20:I22) -> 207201.0396 | N20: 12 | O20: 2782413 | P20: =AVERAGE(O20:O22) -> 2849004 | Q20: =STDEVA(O20:O22) -> 168123.7723
C21: 1786374 | I21: 2068770 | O21: 3040223
C22: 2845108 | I22: 2009316 | O22: 2724376
B23: 24 | C23: 1528495 | D23: =AVERAGE(C23:C25) -> 1382614.667 | E23: =STDEVA(C23:C25) -> 436629.2432 | H23: 24 | I23: 1309257 | J23: =AVERAGE(I23:I25) -> 1511328 | K23: =STDEVA(I23:I25) -> 251139.7092 | N23: 24 | O23: 1377081 | P23: =AVERAGE(O23:O25) -> 1876441.333 | Q23: =STDEVA(O23:O25) -> 463518.395
C24: 1727627 | I24: 1432234 | O24: 2292941
C25: 891722 | I25: 1792493 | O25: 1959302
A28: % of wound healing | B28: 3 | C28: =(($D$8-D11)/$D$8)*100 -> 18.03 | G28: % of wound healing | H28: 3 | I28: =(($J$8-J11)/$J$8)*100 -> 24.98 | M28: % of wound healing | N28: 3 | O28: =(($P$8-P11)/$P$8)*100 -> 11.86
B29: 6 | C29: =(($D$8-D14)/$D$8)*100 -> 34.09 | H29: 6 | I29: =(($J$8-J14)/$J$8)*100 -> 43.53 | N29: 6 | O29: =(($P$8-P14)/$P$8)*100 -> 27.25
B30: 9 | C30: =(($D$8-D17)/$D$8)*100 -> 41.67 | H30: 9 | I30: =(($J$8-J17)/$J$8)*100 -> 42.87 | N30: 9 | O30: =(($P$8-P17)/$P$8)*100 -> 39.05
B31: 12 | C31: =(($D$8-D20)/$D$8)*100 -> 51.22 | H31: 12 | I31: =(($J$8-J20)/$J$8)*100 -> 55.57 | N31: 12 | O31: =(($P$8-P20)/$P$8)*100 -> 45.11
B32: 24 | C32: =(($D$8-D23)/$D$8)*100 -> 71.72 | H32: 24 | I32: =(($J$8-J23)/$J$8)*100 -> 68.88 | N32: 24 | O32: =(($P$8-P23)/$P$8)*100 -> 63.85
C35: 3455440
C36: 33769
C37: =C36+C35 -> 3489209

Sheet U87 III
B7: time [h] | C7: wound area | D7: mean | E7: SD | H7: time [h] | I7: wound area | J7: mean | K7: SD | N7: time [h] | O7: wound area | P7: mean | Q7: SD
A8: control | B8: 0 | C8: 4005845 | D8: =AVERAGE(C8:C10) -> 4290727.667 | E8: =STDEVA(C8:C10) -> 696905.9818 | G8: Perphenazine 1uM | H8: 0 | I8: 4389827 | J8: =AVERAGE(I8:I10) -> 4173260.333 | K8: =STDEVA(I8:I10) -> 239483.0134 | M8: Prochlorperazine 1uM | N8: 0 | O8: 6083106 | P8: =AVERAGE(O8:O10) -> 5946858 | Q8: =STDEVA(O8:O10) -> 237369.3732
C9: 3781395 | I9: 4213894 | O9: 5672769
C10: 5084943 | I10: 3916060 | O10: 6084699
B11: 3 | C11: 3350134 | D11: =AVERAGE(C11:C13) -> 3458954.667 | E11: =STDEVA(C11:C13) -> 210460.3095 | H11: 3 | I11: 3603697 | J11: =AVERAGE(I11:I13) -> 3599028.667 | K11: =STDEVA(I11:I13) -> 244597.9143 | N11: 3 | O11: 5062454 | P11: =AVERAGE(O11:O13) -> 4801820.667 | Q11: =STDEVA(O11:O13) -> 253086.4324
C12: 3701546 | I12: 3841259 | O12: 4785983
C13: 3325184 | I13: 3352130 | O13: 4557025
B14: 6 | C14: 3046494 | D14: =AVERAGE(C14:C16) -> 3261047 | E14: =STDEVA(C14:C16) -> 419186.9388 | H14: 6 | I14: 2796089 | J14: =AVERAGE(I14:I16) -> 2788182 | K14: =STDEVA(I14:I16) -> 157234.6806 | N14: 6 | O14: 4701567 | P14: =AVERAGE(O14:O16) -> 4726157.667 | Q14: =STDEVA(O14:O16) -> 124570.8507
C15: 3744080 | I15: 2627143 | O15: 4861190
C16: 2992567 | I16: 2941314 | O16: 4615716
B17: 9 | C17: 2157525 | D17: =AVERAGE(C17:C19) -> 2400185 | E17: =STDEVA(C17:C19) -> 212813.6513 | H17: 9 | I17: 2050088 | J17: =AVERAGE(I17:I19) -> 2583885.333 | K17: =STDEVA(I17:I19) -> 526965.7963 | N17: 9 | O17: 4259434 | P17: =AVERAGE(O17:O19) -> 4074008.333 | Q17: =STDEVA(O17:O19) -> 406285.4425
C18: 2555082 | I18: 2597825 | O18: 3608092
C19: 2487948 | I19: 3103743 | O19: 4354499
B20: 12 | C20: 2139579 | D20: =AVERAGE(C20:C22) -> 1970186.667 | E20: =STDEVA(C20:C22) -> 398231.9973 | H20: 12 | I20: 1800999 | J20: =AVERAGE(I20:I22) -> 2106716 | K20: =STDEVA(I20:I22) -> 559361.6326 | N20: 12 | O20: 3236560 | P20: =AVERAGE(O20:O22) -> 3288037.667 | Q20: =STDEVA(O20:O22) -> 65221.4801
C21: 1515263 | I21: 1766839 | O21: 3266170
C22: 2255718 | I22: 2752310 | O22: 3361383
B23: 24 | C23: 520215 | D23: =AVERAGE(C23:C25) -> 943758.6667 | E23: =STDEVA(C23:C25) -> 369036.3295 | H23: 24 | I23: 1196698 | J23: =AVERAGE(I23:I25) -> 1375902.667 | K23: =STDEVA(I23:I25) -> 275276.1157 | N23: 24 | O23: 1568176 | P23: =AVERAGE(O23:O25) -> 2013282.667 | Q23: =STDEVA(O23:O25) -> 1015453.095
C24: 1114961 | I24: 1692862 | O24: 3175280
C25: 1196100 | I25: 1238148 | O25: 1296392
A28: % of wound healing | B28: 3 | C28: =(($D$8-D11)/$D$8)*100 -> 19.39 | G28: % of wound healing | H28: 3 | I28: =(($J$8-J11)/$J$8)*100 -> 13.76 | M28: % of wound healing | N28: 3 | O28: =(($P$8-P11)/$P$8)*100 -> 19.25
B29: 6 | C29: =(($D$8-D14)/$D$8)*100 -> 24.00 | H29: 6 | I29: =(($J$8-J14)/$J$8)*100 -> 33.19 | N29: 6 | O29: =(($P$8-P14)/$P$8)*100 -> 20.53
B30: 9 | C30: =(($D$8-D17)/$D$8)*100 -> 44.06 | H30: 9 | I30: =(($J$8-J17)/$J$8)*100 -> 38.08 | N30: 9 | O30: =(($P$8-P17)/$P$8)*100 -> 31.49
B31: 12 | C31: =(($D$8-D20)/$D$8)*100 -> 54.08 | H31: 12 | I31: =(($J$8-J20)/$J$8)*100 -> 49.52 | N31: 12 | O31: =(($P$8-P20)/$P$8)*100 -> 44.71
B32: 24 | C32: =(($D$8-D23)/$D$8)*100 -> 78.00 | H32: 24 | I32: =(($J$8-J23)/$J$8)*100 -> 67.03 | N32: 24 | O32: =(($P$8-P23)/$P$8)*100 -> 66.15

Sheet U87 t0 SD
C3: 2ml roztworu/szalkę
C4: cała powierzchnia = cała pusta powierzchnia zdjęcia
C5: powierzchnia analizy = powierzchnia rany
C6: CONTROL | K6: PERPHENAZINE 1uM | R6: PROCHLORPERAZINE 1uM
A8: time [h] | C8: % wound heling | I8: time [h] | K8: % wound heling | P8: time [h] | R8: % wound heling
B9: I | C9: II | D9: III | J9: I | K9: II | L9: III | Q9: I | R9: II | S9: III
B10: ='U87 I'!C8 -> 4996235.00 | C10: ='U87 II'!C8 -> 5788204.00 | D10: ='U87 III'!C8 -> 4005845.00 | J10: ='U87 I'!I8 -> 5581872.00 | K10: ='U87 II'!I8 -> 3994597.00 | L10: ='U87 III'!I8 -> 4389827.00 | Q10: ='U87 I'!O8 -> 5482092.00 | R10: ='U87 II'!O8 -> 5133576.00 | S10: ='U87 III'!O8 -> 6083106.00
B11: ='U87 I'!C9 -> 4902657.00 | C11: ='U87 II'!C9 -> 4502077.00 | D11: ='U87 III'!C9 -> 3781395.00 | J11: ='U87 I'!I9 -> 5200630.00 | K11: ='U87 II'!I9 -> 5600392.00 | L11: ='U87 III'!I9 -> 4213894.00 | Q11: ='U87 I'!O9 -> 4032544.00 | R11: ='U87 II'!O9 -> 5815816.00 | S11: ='U87 III'!O9 -> 5672769.00
B12: ='U87 I'!C10 -> 5401274.00 | C12: ='U87 II'!C10 -> 4377988.00 | D12: ='U87 III'!C10 -> 5084943.00 | J12: ='U87 I'!I10 -> 4840571.00 | K12: ='U87 II'!I10 -> 4972102.00 | L12: ='U87 III'!I10 -> 3916060.00 | Q12: ='U87 I'!O10 -> 4899122.00 | R12: ='U87 II'!O10 -> 4622302.00 | S12: ='U87 III'!O10 -> 6084699.00
A13: mean | B13: =AVERAGE(B10:B12) -> 5100055.33 | C13: =AVERAGE(C10:C12) -> 4889423.00 | D13: 4290727.67 | I13: mean | J13: =AVERAGE(J10:J12) -> 5207691.00 | K13: =AVERAGE(K10:K12) -> 4855697.00 | L13: =AVERAGE(L10:L12) -> 4173260.33 | P13: mean | Q13: =AVERAGE(Q10:Q12) -> 4804586.00 | R13: =AVERAGE(R10:R12) -> 5190564.67 | S13: =AVERAGE(S10:S12) -> 5946858.00
A14: mean | B14: =AVERAGE(B13:D13) -> 4760068.67 | I14: mean | J14: =AVERAGE(J13:L13) -> 4745549.44 | P14: mean | Q14: =AVERAGE(Q13:S13) -> 5314002.89
E15: średnia | F15: SD | M15: średnia | N15: SD | T15: średnia | U15: SD
B16: =((B10*100)/$B$14) -> 104.96 | C16: =((C10*100)/$B$14) -> 121.60 | D16: 84.16 | E16: =AVERAGE(B16:B18) -> 107.14 | F16: =STDEVA(B16:B18) -> 5.57 | J16: =((J10*100)/$J$14) -> 117.62 | K16: =((K10*100)/$J$14) -> 84.18 | L16: 92.50 | M16: =AVERAGE(J16:J18) -> 109.74 | N16: =STDEVA(J16:J18) -> 7.81 | Q16: =((Q10*100)/$Q$14) -> 103.16 | R16: =((R10*100)/$Q$14) -> 96.60 | S16: 114.47 | T16: =AVERAGE(Q16:Q18) -> 90.41 | U16: =STDEVA(Q16:Q18) -> 13.73
B17: =((B11*100)/$B$14) -> 103.00 | C17: 94.58 | D17: 79.44 | E17: =AVERAGE(C16:C18) -> 102.72 | F17: =STDEVA(C16:C18) -> 16.40 | J17: =((J11*100)/$J$14) -> 109.59 | K17: 118.01 | L17: 88.80 | M17: =AVERAGE(K16:K18) -> 102.32 | N17: =STDEVA(K16:K18) -> 17.05 | Q17: =((Q11*100)/$Q$14) -> 75.89 | R17: 109.44 | S17: 106.75 | T17: =AVERAGE(R16:R18) -> 97.68 | U17: =STDEVA(R16:R18) -> 11.27
B18: 113.47 | C18: 91.97 | D18: 106.82 | E18: =AVERAGE(D16:D18) -> 90.14 | F18: =STDEVA(D16:D18) -> 14.64 | J18: =((J12*100)/$J$14) -> 102.00 | K18: 104.77 | L18: 82.52 | M18: =AVERAGE(L16:L18) -> 87.94 | N18: =STDEVA(L16:L18) -> 5.05 | Q18: =((Q12*100)/$Q$14) -> 92.19 | R18: 86.98 | S18: 114.50 | T18: =AVERAGE(S16:S18) -> 111.91 | U18: =STDEVA(S16:S18) -> 4.47
C19: średnia | D19: SD | E19: =AVERAGE(E16:E18) -> 100.00 | F19: =STDEVA(E16:E18) -> 8.82 | K19: średnia | L19: SD | M19: =AVERAGE(M16:M18) -> 100.00 | N19: =STDEVA(M16:M18) -> 11.08 | R19: średnia | S19: SD | T19: =AVERAGE(T16:T18) -> 100.00 | U19: =STDEVA(T16:T18) -> 10.93
C20: =AVERAGE(B16:D18) -> 100.00 | D20: =STDEVA(B16:D18) -> 13.67 | K20: =AVERAGE(J16:L18) -> 100.00 | L20: =STDEVA(J16:L18) -> 13.65 | R20: =AVERAGE(Q16:S18) -> 100.00 | S20: =STDEVA(Q16:S18) -> 13.17

Sheet U87 mean
C6: CONTROL | K6: PERPHENAZINE 1uM | Q6: PROCHLORPERAZINE 1uM
A8: time [h] | C8: % wound heling | I8: time [h] | K8: % wound heling | O8: time [h] | Q8: % wound heling
B9: I | C9: II | D9: III | J9: I | K9: II | L9: III | P9: I | Q9: II | R9: III
A10: 3 | B10: =100-('U87 I'!C28) -> 71.49 | C10: =100-('U87 II'!C28) -> 81.97 | D10: =100-('U87 III'!C28) -> 80.61 | I10: 3 | J10: =100-('U87 I'!I28) -> 57.74 | K10: =100-('U87 II'!I28) -> 75.02 | L10: =100-('U87 III'!I28) -> 86.24 | O10: 3 | P10: =100-('U87 I'!O28) -> 87.35 | Q10: =100-('U87 II'!O28) -> 88.14 | R10: =100-('U87 III'!O28) -> 80.75
A11: 6 | B11: =100-('U87 I'!C29) -> 64.54 | C11: =100-('U87 II'!C29) -> 65.91 | D11: =100-('U87 III'!C29) -> 76.00 | I11: 6 | J11: =100-('U87 I'!I29) -> 49.93 | K11: =100-('U87 II'!I29) -> 56.47 | L11: =100-('U87 III'!I29) -> 66.81 | O11: 6 | P11: =100-('U87 I'!O29) -> 74.05 | Q11: =100-('U87 II'!O29) -> 72.75 | R11: =100-('U87 III'!O29) -> 79.47
A12: 9 | B12: =100-('U87 I'!C30) -> 54.09 | C12: =100-('U87 II'!C30) -> 58.33 | D12: =100-('U87 III'!C30) -> 55.94 | I12: 9 | J12: =100-('U87 I'!I30) -> 45.62 | K12: =100-('U87 II'!I30) -> 57.13 | L12: =100-('U87 III'!I30) -> 61.92 | O12: 9 | P12: =100-('U87 I'!O30) -> 69.82 | Q12: =100-('U87 II'!O30) -> 60.95 | R12: =100-('U87 III'!O30) -> 68.51
A13: 12 | B13: =100-('U87 I'!C31) -> 47.23 | C13: =100-('U87 II'!C31) -> 48.78 | D13: =100-('U87 III'!C31) -> 45.92 | I13: 12 | J13: =100-('U87 I'!I31) -> 40.85 | K13: =100-('U87 II'!I31) -> 44.43 | L13: =100-('U87 III'!I31) -> 50.48 | O13: 12 | P13: =100-('U87 I'!O31) -> 55.95 | Q13: =100-('U87 II'!O31) -> 54.89 | R13: =100-('U87 III'!O31) -> 55.29
A14: 24 | B14: =100-('U87 I'!C32) -> 25.55 | C14: =100-('U87 II'!C32) -> 28.28 | D14: =100-('U87 III'!C32) -> 22.00 | I14: 24 | J14: =100-('U87 I'!I32) -> 28.12 | K14: =100-('U87 II'!I32) -> 31.12 | L14: =100-('U87 III'!I32) -> 32.97 | O14: 24 | P14: =100-('U87 I'!O32) -> 41.79 | Q14: =100-('U87 II'!O32) -> 36.15 | R14: =100-('U87 III'!O32) -> 33.85
C17: mean | D17: SD | K17: mean | L17: SD | Q17: mean | R17: SD
B18: 0 | C18: 100 | D18: ='U87 t0 SD'!D20 -> 13.67 | J18: 0 | K18: 100 | L18: ='U87 t0 SD'!L20 -> 13.65 | P18: 0 | Q18: 100 | R18: ='U87 t0 SD'!S20 -> 13.17
A19: % of wound healing | B19: 3 | C19: =(AVERAGE(B10:D10)) -> 78.02 | D19: =STDEVA(B10:D10) -> 5.70 | E19: =100-C19 -> 21.98 | I19: % of wound healing | J19: 3 | K19: =(AVERAGE(J10:L10)) -> 73.00 | L19: =STDEVA(J10:L10) -> 14.36 | M19: =100-K19 -> 27.00 | O19: % of wound healing | P19: 3 | Q19: =(AVERAGE(P10:R10)) -> 85.41 | R19: =STDEVA(P10:R10) -> 4.06
B20: 6 | C20: =(AVERAGE(B11:D11)) -> 68.82 | D20: =STDEVA(B11:D11) -> 6.26 | E20: 31.18 | J20: 6 | K20: =(AVERAGE(J11:L11)) -> 57.74 | L20: =STDEVA(J11:L11) -> 8.51 | M20: 42.26 | P20: 6 | Q20: =(AVERAGE(P11:R11)) -> 75.42 | R20: =STDEVA(P11:R11) -> 3.57 | S20: =100-Q20 -> 24.58
B21: 9 | C21: 56.12 | D21: 2.12 | E21: 43.88 | J21: 9 | K21: 54.89 | L21: 8.38 | M21: 45.11 | P21: 9 | Q21: 66.43 | R21: 4.78 | S21: 33.57
B22: 12 | C22: 47.31 | D22: 1.43 | E22: 52.69 | J22: 12 | K22: 45.25 | L22: 4.87 | M22: =100-K22 -> 54.75 | P22: 12 | Q22: 55.38 | R22: 0.54 | S22: =100-Q22 -> 44.62
B23: 24 | C23: 25.28 | D23: 3.15 | E23: =100-C23 -> 74.72 | J23: 24 | K23: 30.74 | L23: 2.45 | M23: 69.26 | P23: 24 | Q23: 37.27 | R23: 4.08 | S23: =100-Q23 -> 62.73

Sheet U87 mean (2)
C6: CONTROL | K6: PERPHENAZINE 1uM | Q6: PROCHLORPERAZINE 1uM
A8: time [h] | C8: % wound heling | I8: time [h] | K8: % wound heling | O8: time [h] | Q8: % wound heling
B9: I | C9: II | D9: III | J9: I | K9: II | L9: III | P9: I | Q9: II | R9: III
A10: 0 | B10: 5100055.333 | C10: 4889423 | D10: 4290727.667 | I10: 0 | J10: 5207691 | K10: 4855697 | L10: 4173260.333 | O10: 0 | P10: 4804586 | Q10: 5190564.667 | R10: 5946858
A11: 3 | B11: 3645973.333 | C11: 4007689.667 | D11: 3458954.667 | I11: 3 | J11: 3006746.333 | K11: 3642795.667 | L11: 3599028.667 | O11: 3 | P11: 4196708 | Q11: 4574769 | R11: 4801820.667
A12: 6 | B12: 3291347.667 | C12: 3222718 | D12: 3261047 | I12: 6 | J12: 2600301.333 | K12: 2741956.667 | L12: 2788182 | O12: 6 | P12: 3557663 | Q12: 3776246 | R12: 4726157.667
A13: 9 | B13: 2758545.667 | C13: 2851792.333 | D13: 2400185 | I13: 9 | J13: 2375637 | K13: 2773975.667 | L13: 2583885.333 | O13: 9 | P13: 3354495.667 | Q13: 3163817.667 | R13: 4074008.333
A14: 12 | B14: 2408862.333 | C14: 2384850.333 | D14: 1970186.667 | I14: 12 | J14: 2127327 | K14: 2157433 | L14: 2106716 | O14: 12 | P14: 2688073.333 | Q14: 2849004 | R14: 3288037.667
A15: 24 | B15: 1303197.333 | C15: 1382614.667 | D15: 943758.6667 | I15: 24 | J15: 1464544.667 | K15: 1511328 | L15: 1375902.667 | O15: 24 | P15: 2007844.667 | Q15: 1876441.333 | R15: 2013282.667
C18: mean | D18: SD | K18: mean | L18: SD | Q18: mean | R18: SD
C19: =(AVERAGE(B10:D10)) -> 4760068.67 | D19: =STDEVA(B10:D10) -> 419883.59 | E19: =100-C19 -> -4759968.67 | J19: 0 | K19: =(AVERAGE(J10:L10)) -> 4745549.44 | L19: =STDEVA(J10:L10) -> 525938.27 | M19: =100-K19 -> -4745449.44 | P19: 0 | Q19: =(AVERAGE(P10:R10)) -> 5314002.89 | R19: =STDEVA(P10:R10) -> 581054.28
A20: % of wound healing | C20: 3704205.89 | D20: 278963.79 | E20: =100-C20 -> -3704105.89 | I20: % of wound healing | J20: 3 | K20: =(AVERAGE(J11:L11)) -> 3416190.22 | L20: =STDEVA(J11:L11) -> 355263.44 | M20: =100-K20 -> -3416090.22 | O20: % of wound healing | P20: 3 | Q20: =(AVERAGE(P11:R11)) -> 4524432.56 | R20: =STDEVA(P11:R11) -> 305680.64
C21: 3258370.89 | D21: 34393.01 | E21: -3258270.89 | J21: 6 | K21: =(AVERAGE(J12:L12)) -> 2710146.67 | L21: =STDEVA(J12:L12) -> 97896.34 | M21: -2710046.67 | P21: 6 | Q21: =(AVERAGE(P12:R12)) -> 4020022.22 | R21: =STDEVA(P12:R12) -> 621220.64 | S21: =100-Q21 -> -4019922.22
C22: 2670174.33 | D22: 238420.67 | E22: -2670074.33 | J22: 9 | K22: 2577832.67 | L22: 199238.30 | M22: -2577732.67 | P22: 9 | Q22: 3530773.89 | R22: 480017.99 | S22: -3530673.89
C23: 2254633.11 | D23: 246630.25 | E23: -2254533.11 | J23: 12 | K23: 2130492.00 | L23: 25506.20 | M23: =100-K23 -> -2130392.00 | P23: 12 | Q23: 2941705.00 | R23: 310538.90 | S23: =100-Q23 -> -2941605.00
C24: 1209856.89 | D24: 233843.91 | E24: -1209756.89 | J24: 24 | K24: 1450591.78 | L24: 68782.39 | M24: -1450491.78 | P24: 24 | Q24: 1965856.22 | R24: 77483.29 | S24: =100-Q24 -> -1965756.22

Sheet wound closure %
D1: 1 | K1: 2 | R1: 3
B2: control | C2: wound closure | D2: perf | E2: wound closure | F2: pro | G2: wound closure | I2: control | J2: wound closure | K2: perf | L2: wound closure | M2: pro | N2: wound closure | P2: control | Q2: wound closure | R2: perf | S2: wound closure | T2: pro | U2: wound closure
A3: 0 | B3: 5100055.333 | D3: 5207691 | F3: 4804586 | I3: 4889423 | K3: 4855697 | M3: 5190564.667 | P3: 4290727.667 | R3: 4173260.333 | T3: 5946858
A4: 3 | B4: 3645973.333 | C4: =(($B$3-B4)/$B$3)*100 -> 28.51 | D4: 3006746.333 | E4: =(($D$3-D4)/$D$3)*100 -> 42.26 | F4: 4196708 | G4: =(($F$3-F4)/$F$3)*100 -> 12.65 | I4: 4007689.667 | J4: =(($I$3-I4)/$I$3)*100 -> 18.03 | K4: 3642795.667 | L4: =(($K$3-K4)/$K$3)*100 -> 24.98 | M4: 4574769 | N4: =(($M$3-M4)/$M$3)*100 -> 11.86 | P4: 3458954.667 | Q4: =(($P$3-P4)/$P$3)*100 -> 19.39 | R4: 3599028.667 | S4: =(($R$3-R4)/$R$3)*100 -> 13.76 | T4: 4801820.667 | U4: =(($T$3-T4)/$T$3)*100 -> 19.25
A5: 6 | B5: 3291347.667 | C5: =(($B$3-B5)/$B$3)*100 -> 35.46 | D5: 2600301.333 | E5: =(($D$3-D5)/$D$3)*100 -> 50.07 | F5: 3557663 | G5: =(($F$3-F5)/$F$3)*100 -> 25.95 | I5: 3222718 | J5: =(($I$3-I5)/$I$3)*100 -> 34.09 | K5: 2741956.667 | L5: =(($K$3-K5)/$K$3)*100 -> 43.53 | M5: 3776246 | N5: =(($M$3-M5)/$M$3)*100 -> 27.25 | P5: 3261047 | Q5: =(($P$3-P5)/$P$3)*100 -> 24.00 | R5: 2788182 | S5: =(($R$3-R5)/$R$3)*100 -> 33.19 | T5: 4726157.667 | U5: =(($T$3-T5)/$T$3)*100 -> 20.53
A6: 9 | B6: 2758545.667 | C6: 45.91 | D6: 2375637 | E6: 54.38 | F6: 3354495.667 | G6: 30.18 | I6: 2851792.333 | J6: 41.67 | K6: 2773975.667 | L6: 42.87 | M6: 3163817.667 | N6: 39.05 | P6: 2400185 | Q6: 44.06 | R6: 2583885.333 | S6: 38.08 | T6: 4074008.333 | U6: 31.49
A7: 12 | B7: 2408862.333 | C7: 52.77 | D7: 2127327 | E7: 59.15 | F7: 2688073.333 | G7: 44.05 | I7: 2384850.333 | J7: 51.22 | K7: 2157433 | L7: 55.57 | M7: 2849004 | N7: 45.11 | P7: 1970186.667 | Q7: 54.08 | R7: 2106716 | S7: 49.52 | T7: 3288037.667 | U7: 44.71
A8: 24 | B8: 1303197.333 | C8: 74.45 | D8: 1464544.667 | E8: 71.88 | F8: 2007844.667 | G8: 58.21 | I8: 1382614.667 | J8: 71.72 | K8: 1511328 | L8: 68.88 | M8: 1876441.333 | N8: 63.85 | P8: 943758.6667 | Q8: 78.00 | R8: 1375902.667 | S8: 67.03 | T8: 2013282.667 | U8: 66.15
C11: time | D11: 1 | E11: 2 | F11: 3 | G11: mean | H11: SD
B12: control | C12: 3 | D12: =C4 -> 28.51 | E12: =J4 -> 18.03 | F12: =Q4 -> 19.39 | G12: =AVERAGE(D12:F12) -> 21.98 | H12: =STDEV(D12:F12) -> 5.70
C13: 6 | D13: =C5 -> 35.46 | E13: =J5 -> 34.09 | F13: =Q5 -> 24.00 | G13: =AVERAGE(D13:F13) -> 31.18 | H13: =STDEV(D13:F13) -> 6.26
C14: 9 | D14: 45.91 | E14: 41.67 | F14: 44.06 | G14: 43.88 | H14: 2.12
C15: 12 | D15: 52.77 | E15: 51.22 | F15: 54.08 | G15: 52.69 | H15: 1.43
C16: 24 | D16: 74.45 | E16: 71.72 | F16: 78.00 | G16: 74.72 | H16: 3.15
B17: perf | C17: 3 | D17: =E4 -> 42.26 | E17: =L4 -> 24.98 | F17: =S4 -> 13.76 | G17: 27.00 | H17: 14.36
C18: 6 | D18: =E5 -> 50.07 | E18: =L5 -> 43.53 | F18: =S5 -> 33.19 | G18: 42.26 | H18: 8.51
C19: 9 | D19: 54.38 | E19: 42.87 | F19: 38.08 | G19: 45.11 | H19: 8.38
C20: 12 | D20: 59.15 | E20: 55.57 | F20: 49.52 | G20: 54.75 | H20: 4.87
C21: 24 | D21: 71.88 | E21: 68.88 | F21: 67.03 | G21: 69.26 | H21: 2.45
B22: pro | C22: 3 | D22: =G4 -> 12.65 | E22: =N4 -> 11.86 | F22: =U4 -> 19.25 | G22: 14.59 | H22: 4.06
C23: 6 | D23: =G5 -> 25.95 | E23: =N5 -> 27.25 | F23: =U5 -> 20.53 | G23: 24.58 | H23: 3.57
C24: 9 | D24: 30.18 | E24: 39.05 | F24: 31.49 | G24: 33.57 | H24: 4.78
C25: 12 | D25: 44.05 | E25: 45.11 | F25: 44.71 | G25: 44.62 | H25: 0.54
C26: 24 | D26: 58.21 | E26: 63.85 | F26: 66.15 | G26: 62.73 | H26: 4.08

Sheet rate of cell migration
B1: base on hemacytometer scale photo | C1: 0,25mm = 464,07 | E1: so 1 mm = 1856,28 | CT1: 1 | DF1: 2 | DM1: 3
D3: 1 | G3: 2 | J3: 3 | P3: 1 | S3: 2 | V3: 3 | AB3: 1 | AE3: 2 | AH3: 3 | CP3: control | CQ3: średnia | CR3: nm | CS3: rate of cell migration [nm/h] | CT3: perf | CU3: średnia | CV3: nm | CW3: rate of cell migration | CX3: pro | CY3: średnia | CZ3: nm | DA3: rate of cell migration | DC3: control | DE3: wound closure | DF3: perf | DG3: wound closure | DH3: pro | DI3: wound closure | DK3: control | DL3: wound closure | DM3: perf | DN3: wound closure | DO3: pro | DP3: wound closure
C4: 1332 | D4: 1500 | E4: 1316.3 | F4: 1420.28 | G4: 1472.02 | H4: 1440.01 | I4: 1340.02 | J4: 1336.02 | K4: 1464.01 | O4: 1132.01 | P4: 1280 | Q4: 1152.06 | R4: 1272.06 | S4: 1236.06 | T4: 1332.49 | U4: 1368 | V4: 1302.06 | W4: 1200.37 | AA4: 1398.21 | AB4: 1308.22 | AC4: 1536 | AD4: 1590.28 | AE4: 1508.01 | AF4: 1398.21 | AG4: 1302.01 | AH4: 1378.22 | AI4: 1356.23 | CO4: 0 | CP4: 1440.01 | CQ4: =AVERAGE(CP4:CP8) -> 1341.63 | CR4: =(CQ4/1856.28)*1000000 -> 722751.9555 | CT4: 1132.01 | CU4: =AVERAGE(CT4:CT8) -> 1276.354 | CV4: =(CU4/1856.28)*1000000 -> 687587.002 | CX4: 1308.22 | CY4: =AVERAGE(CX4:CX8) -> 1323.312 | CZ4: =(CY4/1856.28)*1000000 -> 712883.8322 | DC4: 4889423 | DF4: 4855697 | DH4: 5190564.667 | DK4: 4290727.667 | DM4: 4173260.333 | DO4: 5946858
A5: t0 | B5: Control | C5: 1348.02 | D5: 1412.02 | E5: 1244.23 | F5: 1208.01 | G5: 1336.02 | H5: 1256.03 | I5: 1316.15 | J5: 1376.02 | K5: 1376.21 | M5: t0 | N5: Perf 1.0 | O5: 1240.03 | P5: 1248.01 | Q5: 1210.13 | R5: 1182.06 | S5: 1164.14 | T5: 1242.23 | U5: 1162.08 | V5: 1272.01 | W5: 1284.22 | Y5: t0 | Z5: Pro 1.0 | AA5: 1452.01 | AB5: 1344.01 | AC5: 1320.05 | AD5: 1494.01 | AE5: 1380.05 | AF5: 1350.33 | AG5: 1464.2 | AH5: 1415.76 | AI5: 1427.89 | CP5: 1256.03 | CT5: 1240.03 | CX5: 1344.01
C6: 1508.01 | D6: 1388.14 | E6: 1480.01 | F6: 1408.09 | G6: 1508 | H6: 1296.1 | I6: 1212.17 | J6: 1356.02 | K6: 1368.15 | O6: 1288.4 | P6: 1308.01 | Q6: 1194.14 | R6: 1446.62 | S6: 1320.01 | T6: 1242.37 | U6: 1272.06 | V6: 1422.05 | W6: 1308.88 | AA6: 1380 | AB6: 1424.2 | AC6: 1446.01 | AD6: 1596.72 | AE6: 1572.1 | AF6: 1458.2 | AG6: 1450.8 | AH6: 1444.2 | AI6: 1400.05 | CP6: 1296.1 | CT6: 1288.4 | CX6: 1424.2
C7: 1300 | D7: 1368.15 | E7: 1528.01 | F7: 1504.02 | G7: 1392.05 | H7: 1408 | I7: 1396.09 | J7: 1296 | K7: 1252.41 | O7: 1321.19 | P7: 1248.23 | Q7: 1134.25 | R7: 1207.8 | S7: 1350.21 | T7: 1302.5 | U7: 1332 | V7: 1266.01 | W7: 1392.83 | AA7: 1434.01 | AB7: 1296.1 | AC7: 1278.13 | AD7: 1542.11 | AE7: 1494.19 | AF7: 1314.01 | AG7: 1385.35 | AH7: 1300 | AI7: 1301.28 | CP7: 1408 | CT7: 1321.19 | CX7: 1296.1
C8: 1352 | D8: 1230 | E8: 1233.26 | F8: 1248.06 | G8: 1412.46 | H8: 1308.01 | I8: 1328.02 | J8: 1512.18 | K8: 1384.05 | O8: 1400.14 | P8: 1224.01 | Q8: 1266 | R8: 1290.06 | S8: 1194.24 | T8: 1284.01 | U8: 1278.01 | V8: 1254.01 | W8: 1212.06 | AA8: 1212.01 | AB8: 1244.03 | AC8: 1356.00 | AD8: 1490.66 | AE8: 1422.00 | AF8: 1370.09 | AG8: 1419.21 | AH8: 1379.08 | AI8: 1344.33 | CP8: 1308.01 | CT8: 1400.14 | CX8: 1244.03
B9: mean | C9: =AVERAGE(C4:C8) -> 1368.01 | D9: 1379.66 | E9: 1360.36 | F9: 1357.69 | G9: =AVERAGE(G4:G8) -> 1424.11 | H9: =AVERAGE(H4:H8) -> 1341.63 | I9: 1318.49 | J9: 1375.25 | K9: 1368.97 | N9: mean | O9: =AVERAGE(O4:O8) -> 1276.35 | P9: 1261.65 | Q9: 1191.32 | R9: 1279.72 | S9: 1252.93 | T9: 1280.72 | U9: 1282.43 | V9: 1303.23 | W9: 1279.67 | Z9: mean | AA9: =AVERAGE(AA4:AA8) -> 1375.25 | AB9: =AVERAGE(AB4:AB8) -> 1323.31 | AC9: 1387.24 | AD9: 1542.76 | AE9: 1475.27 | AF9: 1378.17 | AG9: 1404.31 | AH9: 1383.45 | AI9: 1365.96
B10: mean/experiment | D10: =AVERAGE(C9:E9) -> 1369.34 | G10: =AVERAGE(F9:H9) -> 1374.48 | J10: =AVERAGE(I9:K9) -> 1354.23 | N10: mean/experiment | P10: =AVERAGE(O9:Q9) -> 1243.11 | S10: =AVERAGE(R9:T9) -> 1271.12 | V10: =AVERAGE(U9:W9) -> 1288.44 | Z10: mean/experiment | AB10: =AVERAGE(AA9:AC9) -> 1361.93 | AE10: =AVERAGE(AD9:AF9) -> 1465.40 | AH10: =AVERAGE(AG9:AI9) -> 1384.57
B11: nm | D11: =(D10/1856.28)*1000000 -> 737681.46 | G11: =(G10/1856.28)*1000000 -> 740447.20 | J11: =(J10/1856.28)*1000000 -> 729542.24 | N11: nm | P11: =(P10/1856.28)*1000000 -> 669676.63 | S11: =(S10/1856.28)*1000000 -> 684769.54 | V11: =(V10/1856.28)*1000000 -> 694099.67 | Z11: nm | AB11: =(AB10/1856.28)*1000000 -> 733689.24 | AE11: =(AE10/1856.28)*1000000 -> 789427.24 | AH11: =(AH10/1856.28)*1000000 -> 745886.40
B13: total mean | D13: =AVERAGE(D11:J11) -> 735890.30 | E13: =STDEV(D11:J11) -> 5668.84 | N13: total mean | P13: =AVERAGE(P11:V11) -> 682848.61 | Q13: =STDEV(P11:V11) -> 12324.31 | Z13: total mean | AB13: =AVERAGE(AB11:AH11) -> 756334.29 | AC13: =STDEV(AB11:AH11) -> 29301.02
D17: 1 | G17: 2 | J17: 3 | P17: 1 | S17: 2 | V17: 3 | AB17: 1 | AE17: 2 | AH17: 3
C18: 544.01 | D18: 492.15 | E18: 264 | F18: 288.11 | G18: 348.02 | H18: 220.33 | I18: 572.13 | J18: 248 | K18: 377.04 | O18: 468 | P18: 408 | Q18: 360.02 | R18: 392.08 | S18: 460.28 | T18: 452.02 | U18: 416 | V18: 488.02 | W18: 392 | AA18: 840 | AB18: 780.37 | AC18: 684 | AD18: 480.15 | AE18: 798.2 | AF18: 632.92 | AG18: 750.02 | AH18: 804 | AI18: 750.1
A19: t24 | B19: Control | C19: 588 | D19: 508.39 | E19: 376 | F19: 556.06 | G19: 452.16 | H19: 456.44 | I19: 312.03 | J19: 336.02 | K19: 600 | M19: t24 | N19: Perf 1.0 | O19: 488 | P19: 484.26 | Q19: 336.21 | R19: 388.02 | S19: 496.06 | T19: 320.1 | U19: 330 | V19: 440.05 | W19: 296.03 | Y19: t24 | Z19: Pro 1.0 | AA19: 726.22 | AB19: 579.14 | AC19: 702.41 | AD19: 510.04 | AE19: 738.22 | AF19: 584.09 | AG19: 660.03 | AH19: 792.36 | AI19: 720.02
C20: 504.25 | D20: 528 | E20: 200 | F20: 304.24 | G20: 220.04 | H20: 352.09 | I20: 340.09 | J20: 392.08 | K20: 332.1 | O20: 408.02 | P20: 408.02 | Q20: 372.09 | R20: 460.02 | S20: 392.73 | T20: 436.02 | U20: 168.05 | V20: 540 | W20: 480 | AA20: 540.03 | AB20: 708.03 | AC20: 696.23 | AD20: 648.25 | AE20: 714.1 | AF20: 704.1 | AG20: 750 | AH20: 696.41 | AI20: 624.26
C21: 416.69 | D21: 540.73 | E21: 301 | F21: 428 | G21: 208 | H21: 376.53 | I21: 624.01 | J21: 428.02 | K21: 453.15 | O21: 428.3 | P21: 428.3 | Q21: 424.68 | R21: 364.35 | S21: 436.02 | T21: 340.21 | U21: 308 | V21: 504.14 | W21: 384 | AA21: 600.27 | AB21: 606.12 | AC21: 642 | AD21: 672.96 | AE21: 582.12 | AF21: 604.01 | AG21: 624.12 | AH21: 438.66 | AI21: 546.3
C22: 636.45 | D22: 504.02 | E22: 208.04 | F22: 596 | G22: 288 | H22: 352.36 | I22: 308.03 | J22: 420.08 | K22: 340.09 | O22: 452.02 | P22: 452.02 | Q22: 424.3 | R22: 436.66 | S22: 369.06 | T22: 372 | U22: 244.13 | V22: 204.04 | W22: 316.23 | AA22: 654 | AB22: 438.04 | AC22: 534.13 | AD22: 492.15 | AE22: 612.26 | AF22: 612.01 | AG22: 606.03 | AH22: 600.12 | AI22: 528.03
B23: mean | C23: =AVERAGE(C18:C22) -> 537.88 | D23: =AVERAGE(D18:D22) -> 514.66 | E23: =AVERAGE(E18:E22) -> 269.81 | F23: =AVERAGE(F18:F22) -> 434.48 | G23: =AVERAGE(G18:G22) -> 303.24 | H23: =AVERAGE(H18:H22) -> 351.55 | I23: =AVERAGE(I18:I22) -> 431.26 | J23: =AVERAGE(J18:J22) -> 364.84 | K23: =AVERAGE(K18:K22) -> 420.48 | N23: mean | O23: =AVERAGE(O18:O22) -> 448.87 | P23: 436.12 | Q23: 383.46 | R23: 408.23 | S23: 430.83 | T23: 384.07 | U23: 293.24 | V23: 435.25 | W23: 373.65 | Z23: mean | AA23: =AVERAGE(AA18:AA22) -> 672.10 | AB23: =AVERAGE(AB18:AB22) -> 622.34 | AC23: 651.75 | AD23: 560.71 | AE23: 688.98 | AF23: 627.43 | AG23: 678.04 | AH23: 666.31 | AI23: 633.74
B24: mean/experiment | D24: =AVERAGE(C23:E23) -> 440.78 | G24: =AVERAGE(F23:H23) -> 363.09 | J24: =AVERAGE(I23:K23) -> 405.52 | N24: mean/experiment | P24: =AVERAGE(O23:Q23) -> 422.82 | S24: =AVERAGE(R23:T23) -> 407.71 | V24: =AVERAGE(U23:W23) -> 367.38 | Z24: mean/experiment | AB24: =AVERAGE(AA23:AC23) -> 648.73 | AE24: =AVERAGE(AD23:AF23) -> 625.71 | AH24: =AVERAGE(AG23:AI23) -> 659.36
B25: nm | D25: =(D24/1856.28)*1000000 -> 237454.48 | G25: =(G24/1856.28)*1000000 -> 195601.96 | J25: =(J24/1856.28)*1000000 -> 218460.94 | N25: nm | P25: =(P24/1856.28)*1000000 -> 227775.98 | S25: =(S24/1856.28)*1000000 -> 219637.48 | V25: =(V24/1856.28)*1000000 -> 197911.59 | Z25: nm | AB25: =(AB24/1856.28)*1000000 -> 349479.96 | AE25: =(AE24/1856.28)*1000000 -> 337074.87 | AH25: =(AH24/1856.28)*1000000 -> 355207.19 | CO25: 24 | CP25: 348.02 | CQ25: =AVERAGE(CP25:CP29) -> 303.244 | CR25: =(CQ25/1856.28)*1000000 -> 163361.1309 | CS25: =(CR4-CR25)/24 -> 23307.95 | CT25: 416 | CU25: =AVERAGE(CT25:CT29) -> 293.236 | CV25: =(CU25/1856.28)*1000000 -> 157969.7028 | CW25: =(CV4-CV25)/24 -> 22067.39 | CX25: 632.92 | CY25: =AVERAGE(CX25:CX29) -> 627.426 | CZ25: =(CY25/1856.28)*1000000 -> 338001.8101 | DA25: =(CZ4-CZ25)/24 -> 15620.08 | DC25: 1382614.667 | DE25: =(($DC$4-DC25)/$DC$4)*100 -> 71.72 | DF25: 1511328 | DG25: =(($DF$4-DF25)/$DF$4)*100 -> 68.88 | DH25: 1876441.333 | DI25: =(($DH$4-DH25)/$DH$4)*100 -> 63.85 | DK25: 943758.6667 | DL25: =(($DK$4-DK25)/$DK$4)*100 -> 78.00 | DM25: 1375902.667 | DN25: =(($DM$4-DM25)/$DM$4)*100 -> 67.03 | DO25: 2013282.667 | DP25: =(($DO$4-DO25)/$DO$4)*100 -> 66.15
CP26: 452.16 | CT26: 330 | CX26: 584.09
B27: total mean | D27: =AVERAGE(D25:J25) -> 217172.46 | E27: =STDEV(D25:J25) -> 20955.99 | N27: total mean | P27: =AVERAGE(P25:V25) -> 215108.35 | Q27: =STDEV(P25:V25) -> 15438.76 | Z27: total mean | AB27: =AVERAGE(AB25:AH25) -> 347254.01 | AC27: =STDEV(AB25:AH25) -> 9268.84 | CP27: 220.04 | CT27: 168.05 | CX27: 704.1
B28: rate of cell migration [nm/h] | D28: =(D13-D27)/24 -> 21613.24 | N28: rate of cell migration [nm/h] | P28: =(P13-P27)/24 -> 19489.18 | Z28: rate of cell migration [nm/h] | AB28: =(AB13-AB27)/24 -> 17045.01 | CP28: 208 | CT28: 308 | CX28: 604.01
CP29: 288 | CT29: 244.13 | CX29: 612.01
B30: rate vs control | D30: 1 | N30: rate vs control | P30: =P28/D28 -> 0.90 | Z30: rate vs control | AB30: =AB28/D28 -> 0.79
CX50: 464.16
DK57: time | DL57: 1 | DM57: 2 | DN57: 3 | DO57: średnia | DP57: SD
DJ58: control | DK58: 3 | DL58: =#REF! ->  | DM58: =#REF! ->  | DN58: =#REF! ->  | DO58: =AVERAGE(DL58:DN58) ->  | DP58: =STDEV(DL58:DN58) -> 
DK59: 6 | DL59: =#REF! ->  | DM59: =#REF! ->  | DN59: =#REF! ->  | DO59: =AVERAGE(DL59:DN59) ->  | DP59: =STDEV(DL59:DN59) -> 
DK60: 9 | DL60: =#REF! ->  | DM60: =#REF! ->  | DN60: =#REF! -> 
DK61: 12 | DL61: =#REF! ->  | DM61: =#REF! ->  | DN61: =#REF! -> 
DK62: 24 | DL62: =CS25 -> 23307.95 | DM62: =DE25 -> 71.72 | DN62: =DL25 -> 78.00 | DO62: 7819.23 | DP62: 13413.63
DJ63: perf | DK63: 3 | DL63: =#REF! ->  | DM63: =#REF! ->  | DN63: =#REF! -> 
DK64: 6 | DL64: =#REF! ->  | DM64: =#REF! ->  | DN64: =#REF! -> 
DK65: 9 | DL65: =#REF! ->  | DM65: =#REF! ->  | DN65: =#REF! -> 
DK66: 12 | DL66: =#REF! ->  | DM66: =#REF! ->  | DN66: =#REF! -> 
DK67: 24 | DL67: =CW25 -> 22067.39 | DM67: =DG25 -> 68.88 | DN67: =DN25 -> 67.03 | DO67: 7401.10 | DP67: 12701.38
DJ68: pro | DK68: 3 | DL68: =#REF! ->  | DM68: =#REF! ->  | DN68: =#REF! -> 
DK69: 6 | DL69: =#REF! ->  | DM69: =#REF! ->  | DN69: =#REF! -> 
DK70: 9 | DL70: =#REF! ->  | DM70: =#REF! ->  | DN70: =#REF! -> 
DK71: 12 | DL71: =#REF! ->  | DM71: =#REF! ->  | DN71: =#REF! -> 
DK72: 24 | DL72: =DA25 -> 15620.08 | DM72: =DI25 -> 63.85 | DN72: =DP25 -> 66.15 | DO72: 5250.03 | DP72: 8980.73
